bitfinex-derivatives/quotes_SOLF0:USTF0_20250312
["timestamp","ask_amount","ask_price","bid_price","bid_amount"]
[1741738067634,7.9805,125.33,125.28,114.79043495]
[1741738067635,4.69473047,125.32,125.31,0.05968794]
[1741738067838,12.67573047,125.32,125.31,0.05968794]
[1741738068041,4.69473047,125.32,125.28,7.9831]
[1741738068242,0.05301462,125.33,125.26,31.82]
[1741738068438,4.68770949,125.32,125.3,7.9822]
[1741738068642,2.0169,125.34,125.26,31.82]
[1741738068846,4.68747261,125.33,125.26,31.82]
[1741738069046,4.68739265,125.32,125.26,31.82]
[1741738069344,4.74097577,125.31,125.28,0.05325023]
[1741738069546,0.05358312,125.31,125.29,7.9827]
[1741738070046,0.05358312,125.31,125.28,0.05325023]
[1741738070343,0.05358312,125.31,125.28,8.03625023]
[1741738070548,0.05358312,125.31,125.28,0.05325023]
[1741738070741,4.69549346,125.3,125.28,0.05325023]
[1741738070940,0.05358312,125.31,125.28,0.05325023]
[1741738071142,4.69550205,125.3,125.28,0.05325023]
[1741738071346,0.05358312,125.31,125.28,0.05325023]
[1741738071547,4.69160723,125.3,125.28,0.05325023]
[1741738071748,0.05358312,125.31,125.28,0.05325023]
[1741738071946,4.69190262,125.3,125.28,0.05325023]
[1741738072150,0.05358312,125.31,125.28,0.05325023]
[1741738072355,0.05358312,125.31,125.29,7.9829]
[1741738072554,0.05358312,125.31,125.28,0.05325023]
[1741738074250,0.05358312,125.31,125.28,8.03635023]
[1741738075144,0.05358312,125.31,125.28,0.05325023]
[1741738075447,0.05358312,125.31,125.3,7.9822]
[1741738076042,6.36995792,125.31,125.3,7.9822]
[1741738077052,6.36995792,125.31,125.28,8.03635023]
[1741738077251,0.05358312,125.31,125.28,0.05325023]
[1741738078249,6.31266428,125.3,125.28,0.05325023]
[1741738078649,0.05358312,125.31,125.28,0.05325023]
[1741738079053,7.9826,125.3,125.28,0.05325023]
[1741738080144,8.03528312,125.31,125.28,0.05325023]
[1741738080350,0.05358312,125.31,125.28,0.05325023]
[1741738080655,6.30314645,125.3,125.28,0.05325023]
[1741738081150,6.30314645,125.29,125.28,0.05325023]
[1741738082556,14.28604645,125.29,125.28,0.05325023]
[1741738082757,6.30314645,125.29,125.24,263.14]
[1741738082955,14.28684645,125.28,125.24,263.14]
[1741738083154,6.30314645,125.28,125.24,263.14]
[1741738083659,7.9848,125.27,125.24,263.14]
[1741738083854,6.30314645,125.29,125.21,7.9878]
[1741738084052,0.05804777,125.27,125.18,265.4096]
[1741738084254,31.58,125.27,125.18,265.4096]
[1741738084655,31.58,125.27,125.19,7.9889]
[1741738084656,7.9864,125.24,125.19,7.9889]
[1741738084955,6.30314645,125.26,125.18,265.4096]
[1741738085154,6.30314645,125.26,125.19,31.56]
[1741738085348,0.05410422,125.23,125.21,0.05852068]
[1741738085755,0.05410422,125.23,125.14,31.56]
[1741738085953,7.9896,125.19,125.14,39.5722]
[1741738086156,31.58,125.21,125.12,295.04]
[1741738086661,7.9909,125.17,125.12,295.04]
[1741738086957,0.05160185,125.16,125.13,0.05589145]
[1741738087155,1.85e-06,125.16,125.13,0.05589145]
[1741738087363,2.0954,125.25,125.15,35.02800972]
[1741738087553,2.0954,125.25,125.16,31.6]
[1741738087756,6.2633597,125.24,125.16,31.6]
[1741738088157,6.2633597,125.23,125.16,31.6]
[1741738088356,31.58,125.22,125.16,31.6]
[1741738088550,0.06004537,125.21,125.18,0.05199716]
[1741738089757,37.48805509,125.21,125.12,263.44]
[1741738089957,4.2015,125.2,125.12,263.44]
[1741738090159,31.74,125.19,125.12,263.44]
[1741738090461,33.7387,125.19,125.12,263.44]
[1741738090663,33.7387,125.19,125.14,7.9921]
[1741738090863,33.7387,125.19,125.12,263.44]
[1741738091064,0.06005349,125.17,125.14,0.05801614]
[1741738092762,0.06005349,125.17,125.15,7.9914]
[1741738092964,0.06005349,125.17,125.14,0.05801614]
[1741738093262,0.06005349,125.17,125.16,7.9912]
[1741738093655,31.7,125.22,125.15,31.78]
[1741738094863,0.05212558,125.2,125.17,0.0532986]
[1741738095963,0.05212558,125.2,125.17,8.0435986]
[1741738096264,6.29635535,125.2,125.17,8.0435986]
[1741738096760,6.29635535,125.2,125.17,0.0532986]
[1741738096953,31.74,125.19,125.12,263.44]
[1741738097154,7.9903,125.18,125.09,31.76]
[1741738097358,2.1816,125.17,125.11,7.9941]
[1741738097661,31.76,125.16,125.09,31.76]
[1741738097860,31.76,125.16,125.13,7.9927]
[1741738098060,31.76,125.16,125.09,31.76]
[1741738098261,31.81345085,125.16,125.13,0.05866306]
[1741738098456,0.05345085,125.16,125.15,7.9918]
[1741738100160,0.05345085,125.16,125.15,39.6918]
[1741738100965,6.2457852,125.21,125.15,31.7]
[1741738101154,6.2457852,125.21,125.2,7.9886]
[1741738101565,6.2457852,125.21,125.15,31.7]
[1741738101961,37.9857852,125.21,125.14,2.0328]
[1741738102162,0.05354506,125.19,125.17,8.04817358]
[1741738102563,0.05354506,125.19,125.17,0.05797358]
[1741738102764,0.05354506,125.19,125.18,7.9899]
[1741738103064,0.05354506,125.19,125.17,0.05797358]
[1741738103565,0.05354506,125.19,125.18,7.9899]
[1741738103968,6.31697685,125.19,125.18,7.9899]
[1741738104361,6.31697685,125.19,125.17,0.05797358]
[1741738104861,6.26343179,125.18,125.17,0.05797358]
[1741738105765,6.26343179,125.18,125.17,8.04807358]
[1741738105962,6.26343179,125.18,125.17,0.05797358]
[1741738106363,6.26343179,125.18,125.16,7.9909]
[1741738106868,6.26343179,125.17,125.16,7.9909]
[1741738107062,6.26343179,125.17,125.12,31.7]
[1741738107263,6.26343179,125.17,125.15,7.9915]
[1741738107458,6.31862683,125.16,125.13,0.05484267]
[1741738107867,6.26343179,125.15,125.14,7.9924]
[1741738108467,0.05519504,125.16,125.15,7.9918]
[1741738108866,6.33734407,125.16,125.15,7.9918]
[1741738110568,6.33734407,125.16,125.13,0.05484267]
[1741738110865,6.33734407,125.16,125.14,7.9923]
[1741738111264,6.28214903,125.15,125.13,8.04764267]
[1741738111573,4.66716041,125.14,125.13,0.05484267]
[1741738111766,10.94930944,125.14,125.13,0.05484267]
[1741738112165,42.52930944,125.14,125.13,0.05484267]
[1741738112365,77.55731916,125.14,125.04,2.03]
[1741738112668,6.86326041,125.13,125.08,7.9962]
[1741738112968,4.66716041,125.12,125.04,2.03]
[1741738113160,4.66716041,125.11,125.1,7.995]
[1741738113357,10.94930944,125.11,125.1,7.995]
[1741738114367,6.28214903,125.11,125.1,7.995]
[1741738114666,10.94851628,125.11,125.09,8.05047907]
[1741738114967,6.28214903,125.11,125.09,0.05527907]
[1741738115269,6.28214903,125.11,125.1,7.995]
[1741738116066,4.903e-05,125.11,125.1,7.995]
[1741738116366,4.67106921,125.16,125.11,7.9943]
[1741738116567,52.49642022,125.18,125.11,31.62]
[1741738116864,4.67173922,125.17,125.11,31.62]
[1741738117074,4.67173922,125.16,125.11,31.62]
[1741738117266,33.7271,125.18,125.11,31.62]
[1741738117567,0.05947187,125.16,125.14,7.9921]
[1741738117769,0.05947187,125.16,125.13,0.05716514]
[1741738118171,0.05947187,125.16,125.15,7.9918]
[1741738118371,4.73587783,125.16,125.15,7.9918]
[1741738118572,4.73587783,125.16,125.13,0.05716514]
[1741738118871,4.67640596,125.15,125.13,0.05716514]
[1741738119074,0.05947187,125.16,125.13,0.05716514]
[1741738119373,4.67684127,125.15,125.13,0.05716514]
[1741738119666,0.05947187,125.16,125.14,7.9919]
[1741738119866,4.67875987,125.15,125.14,7.9919]
[1741738121273,4.67875987,125.15,125.13,0.05716514]
[1741738121580,4.68450599,125.14,125.13,0.05716514]
[1741738121968,4.68362035,125.14,125.13,0.05716514]
[1741738122969,4.68362035,125.14,125.05,2.0896]
[1741738123275,4.68362035,125.13,125.06,31.68]
[1741738123476,12.67742035,125.12,125.08,7.9957]
[1741738123672,4.68362035,125.11,125.06,31.68]
[1741738123875,4.68362035,125.11,125.05,4.2638]
[1741738123876,4.68851663,125.1,125.05,4.2638]
[1741738124078,4.6887329,125.09,125.06,7.9974]
[1741738124376,4.6905981,125.08,125.06,8.05396511]
[1741738124577,0.05866838,125.09,125.06,0.05656511]
[1741738124876,4.69076018,125.08,125.07,7.9966]
[1741738125270,4.69076018,125.08,125.06,0.05656511]
[1741738125477,4.69076018,125.08,124.99,83.17305748]
[1741738125478,4.69076018,125.07,125.0,31.7]
[1741738125778,4.69076018,125.06,125.0,31.7]
[1741738125970,31.7,125.09,125.0,31.7]
[1741738126170,4.69770574,125.08,125.0,31.7]
[1741738126374,4.69770574,125.07,124.99,87.41575748]
[1741738126574,0.05535475,125.05,125.03,0.04325476]
[1741738127179,0.05535475,125.05,125.04,7.9988]
[1741738128874,6.32599498,125.05,125.04,7.9988]
[1741738129080,11.03256169,125.05,125.04,7.9988]
[1741738129275,11.03256169,125.05,125.03,8.04245476]
[1741738129471,6.32599498,125.05,125.03,0.04325476]
[1741738129980,10.97706949,125.04,125.03,0.04325476]
[1741738130482,6.27064023,125.04,125.03,0.04325476]
[1741738131379,6.27064023,125.04,125.03,8.04275476]
[1741738131581,10.97435131,125.04,125.03,8.04275476]
[1741738131784,10.97435131,125.04,125.03,0.04325476]
[1741738132682,10.97435131,125.04,125.03,8.04275476]
[1741738133284,10.97435131,125.04,125.03,0.04325476]
[1741738137083,10.97435131,125.04,124.96,2.013]
[1741738137281,21.98532819,125.01,124.93,21.98532819]
[1741738137581,8.0027,124.98,124.92,31.64]
[1741738137782,21.98532819,124.99,124.91,2.0066]
[1741738137988,12.69111227,124.98,124.91,2.0066]
[1741738138190,0.05232206,124.96,124.91,2.0066]
[1741738138583,0.05232206,124.96,124.95,8.0046]
[1741738138990,16.87535478,124.96,124.95,8.0046]
[1741738139888,6.32296229,124.96,124.95,8.0046]
[1741738140388,6.32296229,124.96,124.93,31.84]
[1741738140587,6.32296229,124.96,124.91,2.0066]
[1741738140986,0.05232206,124.96,124.95,8.0046]
[1741738141179,0.05232206,124.96,124.93,31.82]
[1741738141385,0.05232206,124.96,124.94,8.0048]
[1741738141989,0.05232206,124.96,124.95,8.0046]
[1741738142183,0.05232206,124.96,124.93,31.82]
[1741738142378,17.16072863,124.96,124.94,8.0046]
[1741738142578,17.16072863,124.96,124.93,31.82]
[1741738142985,17.16072863,124.96,124.9,2.0506]
[1741738143186,6.58015637,124.95,124.89,31.86]
[1741738143386,6.58015637,124.95,124.88,267.9499]
[1741738143595,0.05935319,124.93,124.88,4.0299]
[1741738143782,0.05935319,124.93,124.89,31.88]
[1741738143982,0.05935319,124.93,124.92,8.0065]
[1741738144693,0.05935319,124.93,124.87,37.22679835]
[1741738144885,0.05935319,124.93,124.87,2.007]
[1741738145084,0.05935319,124.93,124.89,8.008]
[1741738145281,6.56908982,124.92,124.89,8.008]
[1741738145682,6.56908982,124.92,124.87,2.007]
[1741738146090,0.05935319,124.93,124.87,2.007]
[1741738146794,0.05935319,124.93,124.91,8.0067]
[1741738146985,0.05935319,124.93,124.87,2.007]
[1741738147891,0.05935319,124.93,124.92,8.0065]
[1741738148491,6.4841,125.0,124.91,2.1311]
[1741738148689,4.66069642,124.99,124.91,4.1768]
[1741738148888,38.5641,125.0,124.91,4.1768]
[1741738149089,38.5641,125.0,124.97,8.0029]
[1741738149292,17.06060304,124.99,124.91,4.1768]
[1741738149689,0.05572448,124.96,124.94,8.0560241]
[1741738149898,0.05572448,124.96,124.94,0.0512241]
[1741738150084,0.05572448,124.96,124.95,8.0046]
[1741738150691,17.11632752,124.96,124.95,8.0046]
[1741738151093,7.9998,125.03,124.94,0.0512241]
[1741738151395,303.9779,125.04,124.93,68.57979835]
[1741738151606,4.6647725,125.03,124.93,68.57979835]
[1741738151795,4.6647725,125.03,125.0,8.0013]
[1741738151796,15.17117526,125.03,125.0,8.0013]
[1741738152096,10.50640276,125.03,124.97,33.4]
[1741738152296,10.50640276,125.03,125.0,8.0011]
[1741738152497,0.05595951,125.01,125.0,8.0011]
[1741738152792,10.56236227,125.01,125.0,8.0011]
[1741738153888,0.05595951,125.01,125.0,8.0011]
[1741738154595,0.05595951,125.01,125.0,41.3211]
[1741738156295,0.05595951,125.01,124.99,8.05769981]
[1741738156602,0.05595951,125.01,124.99,0.05589981]
[1741738157399,0.05595951,125.01,125.0,8.0014]
[1741738157701,0.05595951,125.01,124.99,0.05589981]
[1741738157898,0.05595951,125.01,125.0,8.0014]
[1741738158197,10.45460716,125.01,125.0,8.0014]
[1741738158899,0.05595951,125.01,125.0,8.0014]
[1741738159294,0.05595951,125.01,124.99,0.05589981]
[1741738160701,0.05595951,125.01,124.99,8.05749981]
[1741738161194,0.05595951,125.01,124.99,0.05589981]
[1741738161800,10.40741858,125.0,124.99,0.05589981]
[1741738162793,15.08715886,125.0,124.92,55.89982199]
[1741738162999,8.0027,124.99,124.95,8.0044]
[1741738163198,41.9027,124.99,124.95,8.0044]
[1741738163500,33.9,124.99,124.95,8.0044]
[1741738164000,21.6566053,124.98,124.96,8.06147329]
[1741738164192,16.97355607,124.98,124.96,0.05767329]
[1741738164400,16.97355607,124.98,124.97,8.0033]
[1741738164600,16.97355607,124.98,124.96,0.05767329]
[1741738164799,6.51175396,124.97,124.96,0.05767329]
[1741738165304,6.51175396,124.97,124.96,8.06097329]
[1741738165800,16.94821029,124.97,124.96,8.06097329]
[1741738172302,13.64051029,124.97,124.96,8.06097329]
[1741738172497,3.20405396,124.97,124.96,8.06097329]
[1741738176001,5.396e-05,124.97,124.96,8.06097329]
[1741738176205,0.05438353,124.98,124.97,8.0033]
[1741738176399,0.05438353,124.98,124.97,41.5633]
[1741738178707,14.1953,125.04,125.0,8.0009]
[1741738178904,4.72058538,125.03,124.97,33.56]
[1741738179103,4.7205701,125.02,124.97,33.56]
[1741738179404,4.7205701,125.01,124.97,33.56]
[1741738179604,4.7205701,125.0,124.97,33.56]
[1741738179808,4.7205701,124.99,124.98,0.0588625]
[1741738180002,4.7205701,124.99,124.98,8.0615625]
[1741738180202,0.05845111,125.0,124.98,0.0588625]
[1741738180809,0.05845111,125.0,124.99,8.002]
[1741738185409,19.46833785,125.08,124.99,500.41990242]
[1741738185610,86.98848848,125.11,125.05,21.98995121]
[1741738185809,86.98848848,125.11,125.05,55.62995121]
[1741738186011,86.98848848,125.11,125.07,21.98995121]
[1741738186706,11.01073268,125.1,125.07,22.04213937]
[1741738188114,11.01073268,125.1,125.09,21.98995121]
[1741738188809,11.01073268,125.1,125.09,29.98555121]
[1741738189013,146.01529943,125.11,125.09,21.98995121]
[1741738189014,119.59339943,125.11,125.09,21.98995121]
[1741738189313,119.553831,125.12,125.11,7.9944]
[1741738189506,2.0477,125.18,125.11,55.64995121]
[1741738189912,10.0377,125.18,125.12,7.9935]
[1741738190218,0.06007551,125.16,125.13,0.05672735]
[1741738190419,0.06007551,125.16,125.13,8.04972735]
[1741738190714,0.06007551,125.16,125.13,0.05672735]
[1741738191405,0.06007551,125.16,125.13,22.04667856]
[1741738192411,0.06007551,125.16,125.15,7.9918]
[1741738195713,0.06007551,125.16,125.14,33.56]
[1741738195911,0.06007551,125.16,125.13,0.05672735]
[1741738196915,0.06007551,125.16,125.13,8.04922735]
[1741738197417,0.06007551,125.16,125.13,0.05672735]
[1741738197617,21.98995121,125.15,125.08,351.65405075]
[1741738197811,21.98995121,125.15,125.08,87.67405075]
[1741738198012,7.9936,125.13,125.08,95.66995075]
[1741738198420,21.98995121,125.13,125.08,87.67405075]
[1741738198617,7.9939,125.12,125.08,87.67405075]
[1741738198924,8.05362055,125.12,125.09,0.06136436]
[1741738200417,21.98995121,125.11,125.04,35.5228]
[1741738200717,26.16265121,125.11,125.04,35.5228]
[1741738200919,7.9957,125.09,125.06,7.9971]
[1741738201124,26.16265121,125.11,125.06,7.9971]
[1741738201319,7.9962,125.09,125.03,111.75640196]
[1741738201519,6.358108,125.08,125.04,7.9986]
[1741738201716,0.0534968,125.07,125.05,0.05363343]
[1741738201919,0.0534968,125.07,125.06,7.9976]
[1741738202317,0.0534968,125.07,125.05,0.05363343]
[1741738203115,0.0534968,125.07,125.06,7.9976]
[1741738203321,0.0534968,125.07,125.05,0.05363343]
[1741738203725,6.40866156,125.07,125.05,0.05363343]
[1741738204126,0.0534968,125.07,125.05,0.05363343]
[1741738204317,0.0534968,125.07,125.06,7.9976]
[1741738206027,33.36,125.13,125.05,55.40358464]
[1741738206223,59.53185121,125.16,125.06,2.0426]
[1741738206528,4.69383152,125.14,125.06,2.0426]
[1741738206822,19.04325939,125.14,125.06,2.0426]
[1741738207023,0.05809979,125.11,125.09,0.05778242]
[1741738207226,0.05809979,125.11,125.05,33.36]
[1741738208026,6.35682787,125.1,125.05,33.36]
[1741738208329,6.35682787,125.1,125.06,0.05331007]
[1741738208526,6.35682787,125.1,125.07,7.9968]
[1741738208728,6.35682787,125.1,125.06,0.05331007]
[1741738208930,6.35682787,125.09,125.06,0.05331007]
[1741738209627,0.05809979,125.11,125.08,7.9958]
[1741738209826,4.75189622,125.11,125.08,7.9958]
[1741738210028,0.05809979,125.11,125.06,0.05331007]
[1741738210225,6.35731785,125.1,125.06,0.05331007]
[1741738210733,0.05809979,125.11,125.06,0.05331007]
[1741738211232,0.05809979,125.11,125.09,21.98995121]
[1741738211233,9.979e-05,125.11,125.09,21.98995121]
[1741738211433,9.979e-05,125.11,125.1,33.26]
[1741738211942,9.979e-05,125.11,125.1,41.255]
[1741738212335,6.36225547,125.16,125.1,33.26]
[1741738212632,6.36225547,125.16,125.15,7.9918]
[1741738212837,6.36225547,125.16,125.15,41.2318]
[1741738213032,6.36225547,125.18,125.17,7.9905]
[1741738213840,0.05305557,125.19,125.16,0.05729037]
[1741738216942,35.10779716,125.3,125.18,35.10779716]
[1741738217150,8.79380554,125.29,125.25,7.985]
[1741738217338,4.70430554,125.28,125.23,33.2]
[1741738217544,11.07133584,125.28,125.23,33.2]
[1741738217744,4.70430554,125.27,125.23,33.2]
[1741738217939,0.05131793,125.26,125.24,0.0516392]
[1741738218343,0.05131793,125.26,125.25,7.9853]
[1741738218746,6.41834823,125.26,125.25,7.9853]
[1741738219445,0.05131793,125.26,125.24,0.0516392]
[1741738219750,0.05131793,125.26,125.25,33.22]
[1741738220551,0.05131793,125.26,125.25,41.1854]
[1741738220948,2.125,125.31,125.25,33.2]
[1741738221150,6.36051591,125.3,125.25,33.2]
[1741738221854,6.36051591,125.29,125.24,218.89278425]
[1741738222151,7.9842,125.27,125.26,0.05178908]
[1741738222352,39.79745313,125.27,125.24,73.38097334]
[1741738222546,7.9861,125.24,125.23,350.32330685]
[1741738222941,50.18531975,125.24,125.23,63.03489353]
[1741738223246,7.9867,125.23,125.22,296.20373809]
[1741738223450,45.87812259,125.23,125.22,174.99010672]
[1741738223653,48.27812259,125.23,125.22,162.74190672]
[1741738223853,54.6386385,125.23,125.22,162.74190672]
[1741738224045,54.6386385,125.23,125.22,133.85550672]
[1741738224247,7.9873,125.22,125.21,0.05140896]
[1741738224554,19.03986743,125.22,125.21,0.05140896]
[1741738224747,11.05256743,125.22,125.21,0.05140896]
[1741738226249,234.00600921,125.22,125.21,0.05140896]
[1741738226647,229.30771215,125.22,125.21,0.05140896]
[1741738226946,234.00834146,125.22,125.21,0.05140896]
[1741738227153,234.00834146,125.22,125.21,8.03940896]
[1741738227343,234.00834146,125.22,125.21,0.05140896]
[1741738228253,241.99797454,125.22,125.21,0.05140896]
[1741738228743,19.0507783,125.22,125.21,0.05140896]
[1741738229143,21.4507783,125.22,125.21,0.05140896]
[1741738229653,11.0634783,125.22,125.21,0.05140896]
[1741738230048,11.0634783,125.22,125.21,8.03940896]
[1741738230252,11.07919261,125.22,125.21,8.03940896]
[1741738230853,6.37623022,125.22,125.21,8.03940896]
[1741738231353,3.07283022,125.22,125.21,8.03940896]
[1741738231553,0.06089726,125.24,125.21,0.05140896]
[1741738231745,0.06089726,125.24,125.22,33.16]
[1741738232150,0.06089726,125.24,125.23,7.9867]
[1741738232549,35.1031,125.3,125.22,33.16]
[1741738233454,7.9833,125.29,125.25,7.9854]
[1741738233658,0.05310561,125.27,125.25,8.04483901]
[1741738233853,0.05310561,125.27,125.25,0.05943901]
[1741738234359,33.17310561,125.27,125.25,0.05943901]
[1741738234954,7.9848,125.26,125.25,0.05943901]
[1741738235156,33.17310561,125.27,125.25,0.05943901]
[1741738235954,0.05310561,125.27,125.25,0.05943901]
[1741738237449,0.05310561,125.27,125.26,7.9848]
[1741738243661,0.05310561,125.27,125.25,8.04453901]
[1741738243865,0.05310561,125.27,125.25,0.05943901]
[1741738244460,8.03780561,125.27,125.25,0.05943901]
[1741738244760,8.03780561,125.27,125.23,7.9864]
[1741738244761,43.8374827,125.26,125.19,2.0605]
[1741738244957,4.6493836,125.25,125.16,36.9577]
[1741738245157,6.28751171,125.24,125.16,34.9441]
[1741738245358,6.28751171,125.24,125.18,7.9894]
[1741738245565,43.83728672,125.23,125.16,34.9441]
[1741738245760,4.65054654,125.22,125.16,34.9441]
[1741738245960,0.05257841,125.21,125.18,0.05307914]
[1741738246160,6.28751171,125.2,125.18,0.05307914]
[1741738246560,0.05257841,125.21,125.18,0.05307914]
[1741738246754,7.9886,125.2,125.18,0.05307914]
[1741738246960,0.05257841,125.21,125.18,0.05307914]
[1741738247562,0.05257841,125.21,125.18,8.04277914]
[1741738247764,0.05257841,125.21,125.18,0.05307914]
[1741738247953,6.29357922,125.2,125.19,7.989]
[1741738248462,6.29357922,125.2,125.18,0.05307914]
[1741738248463,0.05257841,125.21,125.18,0.05307914]
[1741738249059,0.05257841,125.21,125.19,7.9892]
[1741738250564,6.30988198,125.2,125.19,7.9892]
[1741738250972,0.05257841,125.21,125.18,0.05307914]
[1741738252158,0.05257841,125.21,125.2,7.9886]
[1741738252559,6.36808739,125.21,125.2,7.9886]
[1741738253963,6.31550898,125.21,125.2,7.9886]
[1741738254171,8.739e-05,125.21,125.2,7.9886]
[1741738254364,4.67948625,125.25,125.2,4.2208]
[1741738254566,43.89750412,125.26,125.2,4.2208]
[1741738254868,4.67863404,125.25,125.2,4.2208]
[1741738255063,43.89750412,125.26,125.25,7.9854]
[1741738255868,87.66212003,125.27,125.24,35.15902236]
[1741738256267,114.90042247,125.27,125.24,35.15902236]
[1741738256467,27.28941407,125.27,125.24,35.15902236]
[1741738257168,27.28941407,125.27,125.26,7.9848]
[1741738257474,19.76252479,125.27,125.26,40.8048]
[1741738258770,15.07611407,125.27,125.26,40.8048]
[1741738259169,19.76236883,125.27,125.26,40.8048]
[1741738259369,4.68550741,125.27,125.25,7.9851]
[1741738259565,4.68550741,125.26,125.25,7.9851]
[1741738259771,0.05894666,125.28,125.24,35.15902236]
[1741738259972,0.05894666,125.28,125.27,7.9841]
[1741738260272,4.74488675,125.28,125.27,7.9841]
[1741738260880,0.05894666,125.28,125.27,7.9841]
[1741738261170,89.7511084,125.33,125.26,32.74]
[1741738261171,87.6110084,125.33,125.26,32.74]
[1741738261373,87.6110084,125.33,125.32,7.981]
[1741738261574,4.69032433,125.33,125.27,39.23989716]
[1741738261877,4.69032433,125.32,125.27,39.23989716]
[1741738262176,4.69032433,125.31,125.3,7.9822]
[1741738262376,4.74182458,125.31,125.3,7.9822]
[1741738263379,0.05150025,125.31,125.3,7.9822]
[1741738263677,4.7372034,125.31,125.3,7.9822]
[1741738263972,0.05150025,125.31,125.28,0.0506727]
[1741738264176,4.68474694,125.3,125.28,0.0506727]
[1741738264378,4.68474694,125.29,125.28,0.0506727]
[1741738264779,0.05150025,125.31,125.28,0.0506727]
[1741738264977,4.68391796,125.3,125.28,0.0506727]
[1741738265182,0.05150025,125.31,125.28,8.0341727]
[1741738265377,0.05150025,125.31,125.28,0.0506727]
[1741738265378,4.68338624,125.3,125.28,0.0506727]
[1741738265577,4.68235066,125.29,125.28,0.0506727]
[1741738265779,0.05150025,125.31,125.29,7.9827]
[1741738265979,4.68242071,125.3,125.29,7.9827]
[1741738266376,10.93320227,125.3,125.29,7.9827]
[1741738267472,2.5e-07,125.31,125.3,7.9822]
[1741738267671,150.16618422,125.39,125.29,67.72779716]
[1741738267879,158.14318422,125.39,125.3,2.1385]
[1741738268381,131.4053121,125.39,125.32,35.10779716]
[1741738268582,131.4053121,125.39,125.33,32.66]
[1741738268771,131.4053121,125.39,125.35,7.9786]
[1741738268977,0.0582453,125.37,125.34,0.0525394]
[1741738269582,0.0582453,125.37,125.35,7.979]
[1741738269982,0.0582453,125.37,125.34,0.0525394]
[1741738270981,0.0582453,125.37,125.36,7.9784]
[1741738272385,0.0582453,125.37,125.35,7.9786]
[1741738272785,0.0582453,125.37,125.34,0.0525394]
[1741738274088,7.9788,125.36,125.34,0.0525394]
[1741738274276,0.0582453,125.37,125.34,0.0525394]
[1741738274681,32.5582453,125.37,125.34,0.0525394]
[1741738274885,32.5582453,125.37,125.29,295.96]
[1741738274886,6.2859,125.36,125.29,295.96]
[1741738275394,6.2859,125.36,125.32,7.981]
[1741738275597,14.2646,125.36,125.29,295.96]
[1741738275985,0.05570743,125.34,125.33,7.9802]
[1741738277590,0.05570743,125.34,125.32,0.06122608]
[1741738278797,0.05570743,125.34,125.32,8.04182608]
[1741738279195,0.05570743,125.34,125.32,0.06122608]
[1741738279797,0.05570743,125.34,125.32,8.04182608]
[1741738279995,0.05570743,125.34,125.32,0.06122608]
[1741738282198,4.59111812,125.33,125.32,0.06122608]
[1741738282398,0.05570743,125.34,125.32,0.06122608]
[1741738282695,4.6477327,125.34,125.32,0.06122608]
[1741738282894,12.6274327,125.34,125.32,0.06122608]
[1741738283100,0.05570743,125.34,125.32,0.06122608]
[1741738283294,4.59221824,125.33,125.32,0.06122608]
[1741738283494,7.9803,125.33,125.32,0.06122608]
[1741738283696,4.59246972,125.33,125.25,32.4]
[1741738283999,7.9835,125.28,125.23,295.84]
[1741738284201,7.9835,125.28,125.25,7.9853]
[1741738284395,32.48,125.32,125.23,263.36]
[1741738284593,4.59110783,125.31,125.26,7.9847]
[1741738284798,4.59110783,125.3,125.23,263.36]
[1741738284999,0.06084311,125.3,125.27,0.0593381]
[1741738286200,0.06084311,125.3,125.28,7.9835]
[1741738286399,0.06084311,125.3,125.27,0.0593381]
[1741738286799,0.06084311,125.3,125.29,7.9829]
[1741738288913,0.06084311,125.3,125.28,7.9832]
[1741738289209,0.06084311,125.3,125.27,0.0593381]
[1741738290709,0.06084311,125.3,125.29,7.9829]
[1741738293002,0.06084311,125.3,125.28,40.4234]
[1741738293206,0.06084311,125.3,125.28,32.44]
[1741738293400,0.06084311,125.3,125.29,7.9829]
[1741738296416,35.17316161,125.36,125.33,7.9798]
[1741738296618,35.17316161,125.36,125.31,35.10779716]
[1741738296619,4.61200392,125.35,125.31,35.10779716]
[1741738296915,3.92e-06,125.34,125.31,35.10779716]
[1741738297217,33.00816161,125.36,125.32,2.1871]
[1741738297518,19.30345176,125.37,125.34,35.10779716]
[1741738297717,5.176e-05,125.37,125.36,7.9784]
[1741738297919,235.27532986,125.39,125.36,32.44]
[1741738298114,18.93183132,125.39,125.38,43.08489716]